Cogmind - Beta 14 --- EXPLORER MODE // 2024.08.07 @ 21:31:59 Player: MrOysterhead Result: Destroyed by Y-45 Defender with Beam Rifle Performance ------------- Evolutions (1) 500 Regions Visited (3) 600 Robots Destroyed (24) 120 Value Destroyed (633) 633 Prototype IDs (2) 40 Alien Tech Used (0) 0 Bonus (220) 220 TOTAL SCORE: 2113 Bonus ------- Follower Combat Kills 220 Cogmind --------- Core Integrity 0/400 Matter 347/450 Energy 100/100 System Corruption 0% Temperature Cool (9) Movement Core (50) Location -9/Storage Parts ------- > --- POWER (2) -------- (None) > --- PROPULSION (2) --- (None) > --- UTILITY (2) ------ Large Matter Pod Targeting Computer > --- WEAPON (4) ------- (None) > --- INVENTORY (5) ---- Heat Sink Improved Terrain Scanner Core Shielding Utility Shielding Hacking Suite Peak State ------------ > --- POWER ------------ Ion Engine Improved Ion Engine > --- PROPULSION ------- Light Treads Improved Treads > --- UTILITY ---------- Heavy Armor Plating > --- WEAPON ----------- Beam Rifle Light Assault Rifle Heavy Assault Rifle Heavy Hammer > --- INVENTORY -------- Heat Sink Improved Terrain Scanner Core Shielding Utility Shielding Hacking Suite [Rating: 19] Favorites ----------- Power Ion Engine Engine Ion Engine Propulsion Light Treads Treads Light Treads Leg Aluminum Leg Utility Light Armor Plating Device Terrain Scanner Storage Large Matter Pod Processor Targeting Computer Protection Light Armor Plating Weapon Light Assault Rifle Energy Gun Beam Rifle Ballistic Gun Light Assault Rifle Special Weapon Welding Torch Impact Weapon Heavy Hammer Build | -11 -10 -9 -9 ------- Run | Yrd Mat Mat Sto Slots Evolved 3 | . 1 2 . Power 1 | . 1 . . Propulsion . | . . . . Utility . | . . . . Weapon 2 | . . 2 . Parts Attached 22 | 8 1 10 3 Power 4 | 1 1 1 1 Engine 4 | 1 1 1 1 Core . | . . . . Reactor . | . . . . Propulsion 4 | 3 . 1 . Treads 3 | 2 . 1 . Leg 1 | 1 . . . Wheel . | . . . . Hover . | . . . . Flight . | . . . . Utility 6 | 2 . 2 2 Device 1 | 1 . . . Storage 1 | . . . 1 Processor 1 | . . . 1 Hackware . | . . . . Protection 3 | 1 . 2 . Artifact . | . . . . Weapon 8 | 2 . 6 . Energy Gun 2 | . . 2 . Energy Cannon . | . . . . Ballistic Gun 3 | 2 . 1 . Ballistic Cannon . | . . . . Launcher . | . . . . Special Weapon 1 | . . 1 . Impact Weapon 2 | . . 2 . Slashing Weapon . | . . . . Piercing Weapon . | . . . . Special Melee Weapon . | . . . . Unidentified Prototypes . | . . . . Parts Lost 11 | . . 7 4 Power 4 | . . 2 2 Propulsion 2 | . . 1 1 Utility 1 | . . 1 . Weapon 4 | . . 3 1 Highest Loss Streak 5 | . . 5 3 To Critical Strikes . | . . . . Average Slot Usage (%) 78 | . 91 83 28 Engine 15 | . 16 17 6 Treads 19 | . 25 19 4 Device 4 | . 12 . . Processor 1 | . . . 7 Protection 9 | . 12 11 . Energy Gun 4 | . . 8 . Ballistic Gun 18 | . 25 18 3 Impact Weapon 3 | . . 6 . Peak Build Rating 19 | 7 8 19 6 Average Rating 9 | 4 7 14 3 On Entrance 4 | . 7 8 4 Naked Turns . | . . . . Heaviest Build 37 | 9 14 37 9 Greatest Support 43 | 40 40 43 3 Greatest Overweight (x) 2 | . . 2 2 Average Overweight (x) . | . . . . Largest Inventory Capacity 5 | 5 5 5 5 Average Capacity 5 | 5 5 5 5 Most Carried 5 | 5 4 5 5 Average Carried 3 | 2 2 4 5 Final Capacity 5 | 5 5 5 5 Final Carried 5 | 2 2 5 5 Class Distribution -------------------- 71% | Hacker-Mutant 28% | Hacker-Tank Dominant Class ---------------- Hacker-Mutant | -10/Materials Hacker-Tank | -9/Materials Hacker-Mutant | -9/Storage Resources | -11 -10 -9 -9 ----------- Run | Yrd Mat Mat Sto Matter Collected 637 | 182 108 210 137 Remotely . | . . . . Salvage Created 775 | . 136 639 . Parts 50 | . 10 40 . Haulers Intercepted . | . . . . Recyclers Shooed . | . . . . Parts Field Recycled . | . . . . Retrieved Matter . | . . . . Parts Self-Destructed . | . . . . Prevented . | . . . . Kills | -11 -10 -9 -9 ------- Run | Yrd Mat Mat Sto Combat Hostiles Destroyed 19 | . 5 14 . Melee 1 | . . 1 . Guns 16 | . 5 11 . AOE 2 | . . 2 . Classes Destroyed 7 | . 2 5 . Builder 2 | . . 2 . Recycler 2 | . . 2 . Watcher 1 | . . 1 . Swarmer 6 | . 3 3 . Grunt 11 | . 2 9 . Duelist 1 | . . 1 . Sentry 1 | . . 1 . Best Kill Streak 11 | . 2 11 . Combat Bots Only 6 | . 2 6 . Max Kills in Single Turn 5 | . 1 5 . Gunslinging . | . . . . Exploded 2 | . . 2 . Melee 1 | . . 1 . Uniques/NPCs Destroyed . | . . . . Combat | -11 -10 -9 -9 -------- Run | Yrd Mat Mat Sto Hostile Shots Fired 205 | . 20 91 94 Missed 51 | . 8 16 27 Damage Taken 1261 | . 68 699 494 Core 411 | . 3 38 370 Absorbed by Shields . | . . . . Ignored by Resistances 797 | . 47 432 318 Core Remaining (%) 99 | 100 98 . . Volleys Fired 55 | . 13 42 . Largest 3 | . 2 3 . Hottest 99 | . 40 99 . Shots Fired 128 | . 26 102 . Gun 128 | . 26 102 . Cannon . | . . . . Launcher . | . . . . Special . | . . . . Kinetic 95 | . 26 69 . Thermal 33 | . . 33 . Explosive . | . . . . Electromagnetic . | . . . . Robot Hit Streak 18 | . 4 18 . Robot Miss Streak 3 | . 2 3 . Penetration Max . | . . . . Secondary Targets 5 | . 1 4 . Max Gunslinging Chain 1 | . 1 1 . Shots Hit Robots 79 | . 16 63 . Core Hits 43 | . 10 33 . Critical Kills . | . . . . Critical Parts Destroyed 1 | . . 1 . Critical Strikes 3 | . . 3 . Burn 2 | . . 2 . Destroy 1 | . . 1 . Melee Attacks 1 | . . 1 . Impact 1 | . . 1 . Slashing . | . . . . Piercing . | . . . . Sneak Attacks . | . . . . Combat Hostiles . | . . . . Follow-up Attacks . | . . . . Damage Inflicted 1245 | . 125 1120 . Guns 807 | . 125 682 . Cannons . | . . . . Explosions 385 | . . 385 . Melee 53 | . . 53 . Ramming . | . . . . Kinetic 516 | . 125 391 . Thermal 676 | . . 676 . Explosive . | . . . . Electromagnetic . | . . . . Impact 53 | . . 53 . Slashing . | . . . . Piercing . | . . . . Highest Corruption . | . . . . Average Corruption . | . . . . Corruption Purged . | . . . . Corruption Blocked . | . . . . Overload Shots . | . . . . Overflow Damage 82 | . . 82 . Projectiles . | . . . . Explosions 82 | . . 82 . Melee . | . . . . Knockbacks . | . . . . Impact . | . . . . Kinetic . | . . . . Secondary . | . . . . Self-Inflicted Damage 60 | . . 60 . Shots 1 | . . 1 . Rammed . | . . . . Targets Rammed . | . . . . Kicked . | . . . . Crushed . | . . . . Highest Temperature 772 | . 36 772 . Average Temperature 207 | . 12 234 . Received Heat Transfer 663 | . 42 354 267 Effects 38 | . . 38 . Shutdowns 10 | . . 10 . Energy Bleed 5 | . . 5 . Interference 5 | . . 5 . Matter Decay 5 | . . 5 . Short Circuit 2 | . . 2 . Damage (minor) 5 | . . 5 . Damage (major) 6 | . . 6 . Siege Activations . | . . . . Robots Corrupted . | . . . . Combat Hostiles . | . . . . Parts Fried . | . . . . Impact Corruptions . | . . . . Robots Melted . | . . . . Combat Hostiles . | . . . . Parts Melted 1 | . . 1 . Heat Transferred 1138 | . . 1138 . Parts Sabotaged . | . . . . Parts Stolen . | . . . . Parts Stripped . | . . . . Power Chain Reactions . | . . . . Alert | -11 -10 -9 -9 ------- Run | Yrd Mat Mat Sto Peak Influence 335 | . 192 232 335 Initial 67 | . . . 67 Average 83 | . 65 88 152 Maximum Alert Level 1 | . . 1 1 Low Security (%) 85 | 100 100 78 68 Level 1 14 | . . 21 31 Level 2 . | . . . . Level 3 . | . . . . Level 4 . | . . . . Level 5 . | . . . . High Security . | . . . . Max Security . | . . . . Squads Dispatched 5 | . . 2 3 Investigation 1 | . . 1 . Extermination . | . . . . Reinforcement 2 | . . 1 1 Assault 2 | . . . 2 Garrison . | . . . . Intercept . | . . . . Searches Triggered . | . . . . Construction Impeded . | . . . . Haulers Reinforced . | . . . . Active Scanning Responses . | . . . . Cargo Convoy Interrupts . | . . . . Stealth | -11 -10 -9 -9 --------- Run | Yrd Mat Mat Sto Distress Signals 5 | . . 3 2 Communications Jammed . | . . . . Distress Signals . | . . . . Times Spotted 41 | . 7 17 17 Peak Tracking Total 12 | . 2 4 12 Tactical Retreats 3 | . . . 3 Traps | -11 -10 -9 -9 ------- Run | Yrd Mat Mat Sto Traps Triggered 3 | . . 3 . Indirectly . | . . . . Trap Hack Attempts . | . . . . Triggered . | . . . . Disarmed . | . . . . Reprogrammed . | . . . . Reused . | . . . . Traps Extracted . | . . . . Installed . | . . . . Triggered . | . . . . Machines | -11 -10 -9 -9 ---------- Run | Yrd Mat Mat Sto Machines Disabled 3 | . . 2 1 Max in Single Turn 2 | . . 2 . Machines Repaired . | . . . . Machines Dismantled . | . . . . Machines Sabotaged . | . . . . Overloaded Fab Kills . | . . . . Hacking | -11 -10 -9 -9 --------- Run | Yrd Mat Mat Sto Machines Accessed 5 | . 4 1 . Terminals 3 | . 2 1 . Fabricators . | . . . . Repair Stations . | . . . . Recycling Units 2 | . 2 . . Scanalyzers . | . . . . Garrison Access . | . . . . Total Hacks 23 | . 19 4 . Successful 19 | . 15 4 . Failed 4 | . 4 . . Catastrophic 1 | . 1 . . Database Lockouts . | . . . . Manual . | . . . . Terminals 14 | . 10 4 . Fabricators . | . . . . Repair Stations . | . . . . Recycling Units 9 | . 9 . . Scanalyzers . | . . . . Garrison Access . | . . . . Terminal Hacks 12 | . 8 4 . Record 7 | . 6 1 . Prototype ID Bank 1 | . . 1 . Alert Level 1 | . 1 . . Unreport Threat 1 | . . 1 . Patrol Status 1 | . 1 . . Zone Layout 1 | . . 1 . Fabricator Hacks . | . . . . Repair Station Hacks . | . . . . Recycling Unit Hacks 7 | . 7 . . Recycle Component 2 | . 2 . . Process 3 | . 3 . . Retrieve Matter 2 | . 2 . . Scanalyzer . | . . . . Garrison Access Hacks . | . . . . Unauthorized Hacks . | . . . . Terminals . | . . . . Fabricators . | . . . . Repair Stations . | . . . . Recycling Units . | . . . . Scanalyzers . | . . . . Garrison Access . | . . . . Data Cores Recovered . | . . . . Used . | . . . . Hacking Detections 4 | . 3 1 . Full Trace Events 3 | . 2 1 . Feedback Events . | . . . . Feedback Blocked . | . . . . Robot Schematics Acquired . | . . . . Robots Built . | . . . . Authchips . | . . . . Time . | . . . . Total Robot Build Rating . | . . . . Part Schematics Acquired . | . . . . Parts Built . | . . . . Authchips . | . . . . Time . | . . . . Total Part Build Rating . | . . . . Parts Repaired . | . . . . Time . | . . . . Parts Recycled 2 | . 2 . . Recycled Matter 200 | . 200 . . Retrieved Matter 200 | . 200 . . Retrieved Components . | . . . . Parts Scanalyzed . | . . . . Part Schematics Acquired . | . . . . Parts Damaged . | . . . . Bothacking | -11 -10 -9 -9 ------------ Run | Yrd Mat Mat Sto Used RIF Installer . | . . . . Robots Hacked . | . . . . Non-combat . | . . . . Combat . | . . . . Robot Hacks Applied . | . . . . Relay Couplers Released . | . . . . Fabnet Peak Effective % . | . . . . Robots Rewired . | . . . . Allies Hacked . | . . . . Hacks Repelled . | . . . . Allies | -11 -10 -9 -9 -------- Run | Yrd Mat Mat Sto Total Allies 2 | . . . 2 Largest Group 2 | . . . 2 Highest-Rated Group 62 | . . . 62 Highest-Rated Ally 31 | . . . 31 Total Orders . | . . . . Ally Attacks 28 | . . . 28 Total Damage 486 | . . . 486 Kills 9 | . . . 9 Allies Corrupted . | . . . . Allies Melted . | . . . . Intel | -11 -10 -9 -9 ------- Run | Yrd Mat Mat Sto Robot Analysis Total . | . . . . Derelict Logs Recovered . | . . . . Drone Launches . | . . . . Drone Recoveries . | . . . . Exploration | -11 -10 -9 -9 ------------- Run | Yrd Mat Mat Sto Turns Passed 1332 | 82 460 612 178 Spaces Moved 740 | 56 261 291 132 Core 197 | 22 . 43 132 Treads 536 | 27 261 248 . Legs 7 | 7 . . . Wheels . | . . . . Hover . | . . . . Flight . | . . . . Fastest Speed 50 | 50 160 100 50 Average Speed 144 | 111 160 160 92 Slowest Speed 240 | 160 160 240 150 Overloaded Moves . | . . . . Propulsion Burnouts . | . . . . Robots Hopped . | . . . . Cave-ins Triggered . | . . . . Exploration Rate (%) 23 | 6 45 20 21 Regions Visited 3 Branch Regions 1 Pre-discovered Areas . | . . . . Known Exits Taken 3 | 1 1 1 . Unknown Exits Taken . | . . . . Scrap Searched . | . . . . Spaces Dug . | . . . . Terrain Destroyed 14 | . . 14 . Melee . | . . . . Projectile . | . . . . AOE 14 | . . 14 . Terrain Rammed . | . . . . Walls Destroyed . | . . . . Machines Disabled . | . . . . Actions | -11 -10 -9 -9 --------- Run | Yrd Mat Mat Sto Total 902 | 74 283 359 186 Wait 62 | 5 6 . 51 Move 737 | 55 260 290 132 Hop . | . . . . Pick Up 19 | 5 3 11 . Fast Attach 8 | 5 . . 3 Attach 13 | 3 1 9 . Detach 1 | . . 1 . Swap 1 | . . 1 . Drop 5 | 1 . 4 . Fire 55 | . 13 42 . Melee 1 | . . 1 . Ram . | . . . . Kick . | . . . . Crush . | . . . . Escape Stasis . | . . . . Rewire . | . . . . Trap . | . . . . Miscellaneous . | . . . . Route ------- -11/Scrapyard -10/Materials (discovered 2 exits: *Mat / *Min) -9/Materials -9/Storage History --------- Turn | Location | Event 20 | -11/Scrapyard | Identified exit to Materials 20 | -11/Scrapyard | Discovered exit to Materials (range 15) 83 | -11/Scrapyard | Entered Materials 83 | -10/Materials | Evolved 1 slot: Power x1 283 | -10/Materials | Identified exit to Mines 283 | -10/Materials | Discovered exit to Mines (range 13) 312 | -10/Materials | Build established: Hacker-Mutant 514 | -10/Materials | Identified exit to Materials 514 | -10/Materials | Discovered exit to Materials (range 11) 543 | -10/Materials | Entered another Materials area 543 | -9/Materials | Evolved 2 slots: Weapon x2 564 | -9/Materials | Identified exit to Storage 564 | -9/Materials | Discovered exit to Storage (range 15) 907 | -9/Materials | Build established: Hacker-Tank 1126 | -9/Materials | Lost 5 parts (1p1n1u2w) 1155 | -9/Materials | Entered Storage 1204 | -9/Storage | Met a pair of Derelict thieves 1269 | -9/Storage | Lost 3 parts (1p1n1w) 1295 | -9/Storage | Core integrity fell below 50% 1299 | -9/Storage | Build established: Hacker-Mutant 1319 | -9/Storage | Core integrity fell below 20% 1333 | -9/Storage | Destroyed by Y-45 Defender with Beam Rifle Last Messages --------------- 01232_ Critical hit (Burn: +37). 01234_ W-16 Scout distress signal alerts nearby ally. 01238_ S-10 Pest destroyed. 01238_ Broken Imp. Treads destroyed. 01239_ Acquired 17 matter. 01240_ Acquired Lgt. Ion Engine. 01242_ ALERT: Hostiles spotted, dispatching reinforcements to Terminal S018. 01266_ R-06 Scavenger collects Hvy. Assault Rifle. 01267_ W-16 Scout distress signal alerts nearby ally. 01268_ Y-45 Defender destroyed. 01270_ S-10 Pest destroyed. 01281_ Lgt. Ion Engine destroyed. 01297_ Critical hit (Burn: +37). 01304_ B-36 Bruiser unfolds itself. 01309_ S-10 Pest destroyed. 01312_ Critical hit (Burn: +37). Map ----- +----------------------------------------------------+ | ??????????????????????????????????????????????? | | ??????????????????????????????????????????????? | | ???????????????#######?###????#######????????## | | ???????????????+ ###T###### ########## | | ???????????????# !=! | | ???????????????# [%! T | | ???????????????# | | ???????????????# ########## ########## | | ???????????????## ##???????####+###????????## | | ???????????###??# #????????# ##??????????# | | ?????????? ?# #????????# T#??????????# | | ??????????" """ # ########?##" "###?????????# | | ?????????"" """ # # ### #?????????# | | ?????????"" """ + # ## ! #?????????# | | ?????????"" """ # # """ ###!! ! #?????????# | | ??????????" ""??# =#[""" #?#! ! !#?????????# | | ?????????? ????# =%+ """ #?########?????????# | | ????????????????+ %!# #??????????????????# | | ???????????????###+#########??????????????????# | | ???????????????# #?????????????????????# | | ???????????????# """"" #?????????????????????+ | | ???????????????# "???" #?????????????????????# | | ???????????????# "??"" #?????????????????????# | | ???????????????# ""??" #?????????????????????# | | ???????????????# "???" #?????????????????????# | | ???????????????# """""@ #?????????????????????# | | ???????????????# g #?????????????????????# | | ???????????????# l Y #?????????????????????# | | ???????????????#/########????????????????????? | | ???????????????# ???????????????????????????? | | ???????????????+ ???????????????????????????? | | ???????????????# ???????????????????????????? | | ???????????????###????????????????????????????? | | ??????????????????????????????????????????????? | | ??????????????????????????????????????????????? | | ??????????????????????????????????????????????? | | ??????????????????????????????????????????????? | | ??????????????????????????????????????????????? | | ??????????????????????????????????????????????? | | ??????????????????????????????????????????????? | | ??????????????????????????????????????????????? | | ??????????????????????????????????????????????? | | ??????????????????????????????????????????????? | | ??????????????????????????????????????????????? | | ??????????????????????????????????????????????? | | ??????????????????????????????????????????????? | | ??????????????????????????????????????????????? | | ??????????????????????????????????????????????? | | ??????????????????????????????????????????????? | | ??????????????????????????????????????????????? | +----------------------------------------------------+ Best States ------------- Heat Dissipation 28 Energy Generation 17 Energy Capacity 415 Matter Stores 352 Matter Capacity 450 Sight Range 16 Terrain Scan Range 14 Terrain Scan Density 10 Armor Coverage 600 Resistance: KI 35 Resistance: TH 35 Resistance: EX 35 Resistance: EM 35 Resistance: I 35 Resistance: S 35 Resistance: P 35 Evasion (%) 50 Targeting Accuracy 5 Recoil Reduction 2 Offensive Hacking 20 Item Schematics ----------------- None Robot Schematics ------------------ None Fabricated ------------ Nothing Alien Tech Used ----------------- None Achievements -------------- Everything Is Under Control Challenges ------------ None Game ------ Seed ElectronHackingAxe Manual? 0 Play Time 00:31:36 Cumulative 4.9 hours Start 2024.08.07 @ 20:52:54 End 2024.08.07 @ 21:31:59 Sessions 1 Manual Loads 0 Difficulty Explorer Special Mode None Game No. 10 Rogue 6 Adventurer 2 Explorer 2 Win Type - Total 0 Types 0/0/0/0/0/0/0/0/0 Lore% 0 Gallery% 7 Achievement% 8 Wizard Run 0 Options --------- Layout 1 ASCII 0 Keyboard 0 Movement Mouse Keybinds 0 Fullscreen 2 Font 32/Tamsyn Map View 25x17 Zoom Use 98% Tactical HUD 1 Map Filters NONE Filters NONE Steam 1 RUN: 8c353e59-074a-47df-939c-60ccbe0ec817